[Event "Moscow Youth U19 2019"]
[Site "Moscow"]
[Date "2019.11.24"]
[Round "7.4"]
[White "Yeritsyan, Aram"]
[Black "Gotsiuk, Denis"]
[Result "1/2-1/2"]
[ECO "B15"]
[WhiteElo "2276"]
[BlackElo "1976"]
[Annotator "RC"]
[PlyCount "118"]
[EventDate "2019.11.18"]
[EventType "swiss"]
[EventCountry "RUS"]
[SourceTitle "playchess.com"]
[Source "ChessBase"]
[SourceQuality "1"]
[TimeControl "5400+30"]

1. d4 {[%emt 0:00:00]} d5 {[%emt 0:00:00]} 2. Nc3 {[%emt 0:00:00]} c6 {[%emt 0:00:36]} 3. e4 {[%emt 0:00:14]} h6 {[%emt 0:00:21]} 4. Nf3 {[%emt 0:01:19]} Nf6 {[%emt 0:00:30]} 5. Bd3 {[%emt 0:01:03]} dxe4 {[%emt 0:00:17]} 6. Nxe4 {[%emt 0:00:04]} Nxe4 {[%emt 0:00:06]} 7. Bxe4 {[%emt 0:00:03]} Bf5 {[%emt 0:00:15]} 8. Bxf5 {[%emt 0:01:26]} Qa5+ {[%emt 0:00:01]} 9. Bd2 {[%emt 0:00:08]} Qxf5 {[%emt 0:00:03]} 10. O-O {[%emt 0:00:05]} e6 {[%emt 0:14:43]} 11. c4 {[%emt 0:06:28]} Nd7 {[%emt 0:09:51]} 12. Bc3 {[%emt 0:05:40]} Bd6 {[%emt 0:16:07]} 13. d5 {[%emt 0:09:12]} cxd5 {[%emt 0:03:00]} 14. Nd4 {[%emt 0:06:50]} Qg5 {[%emt 0:04:18]} 15. cxd5 {[%emt 0:04:14]} Qxd5 {[%emt 0:06:44]} 16. Qc2 {[%emt 0:10:20]} O-O {[%emt 0:06:13]} 17. Rad1 {[%emt 0:00:12]} Rfd8 {[%emt 0:11:25]} 18. Nb3 {[%emt 0:02:42]} Qc6 {[%emt 0:00:18]} 19. Na5 {[%emt 0:00:24]} Qc7 {[%emt 0:00:25]} 20. Rxd6 {[%emt 0:00:49]} Qxd6 {[%emt 0:00:18]} 21. Nxb7 {[%emt 0:00:02]} Qb6 {[%emt 0:03:43]} 22. Nxd8 {[%emt 0:00:29]} Rxd8 {[%emt 0:00:10]} 23. Qe2 {[%emt 0:12:55]} Nf6 {[%emt 0:07:04]} 24. Bxf6 {[%emt 0:00:21]} gxf6 {[%emt 0:00:07]} 25. Rc1 {[%emt 0:00:25]} Qa5 {[%emt 0:02:58]} 26. h4 {[%emt 0:14:35]} Qxa2 {[%emt 0:05:00]} 27. Qg4+ {[%emt 0:00:05]} Kh7 {[%emt 0:03:08]} 28. Rc7 {[%emt 0:00:59]} Rf8 {[%emt 0:00:32]} 29. h5 {[%emt 0:01:09]} Qb1+ {[%emt 0:02:09]} 30. Kh2 {[%emt 0:00:07]} Qxb2 {[%emt 0:01:55]} 31. Qg6+ {[%emt 0:00:36]} Kh8 {[%emt 0:00:01]} 32. Qxh6+ {[%emt 0:00:04]} Kg8 {[%emt 0:00:01]} 33. Rd7 {[%emt 0:06:41]} Qe5+ {[%emt 0:01:43]} 34. f4 {[%emt 0:00:20]} Qf5 {[%emt 0:00:13]} 35. Rd2 {[%emt 0:04:25]} Qh7 {[%emt 0:01:39]} 36. Qxf6 {[%emt 0:03:57]} Qxh5+ {[%emt 0:00:01]} 37. Kg3 {[%emt 0:01:46]} Rb8 {[%emt 0:01:14]} 38. Rd3 {[%emt 0:00:42]} Qg6+ {[%emt 0:00:32]} 39. Qxg6+ {[%emt 0:00:04]} fxg6 {[%emt 0:00:01]} 40. Ra3 {[%emt 0:00:25]} Kf7 {[%emt 0:00:20]} 41. Rxa7+ {[%emt 0:00:14]} Kf6 {[%emt 0:00:01]} 42. Ra5 {[%emt 0:01:36]} Rb2 {[%emt 0:01:17]} 43. Kf3 {[%emt 0:00:29]} Rd2 {[%emt 0:00:53]} 44. g4 {[%emt 0:01:07]} Rd5 {[%emt 0:00:46]} 45. Rxd5 {[%emt 0:00:06]} exd5 {[%emt 0:00:00]} 46. Ke2 {[%emt 0:00:19]} Ke6 {[%emt 0:00:44]} 47. Kd3 {[%emt 0:00:29]} Ke7 {[%emt 0:00:13]} 48. Kc3 {[%emt 0:00:47]} Kd7 {[%emt 0:00:04]} 49. Kb3 {[%emt 0:00:26]} Kd6 {[%emt 0:01:10]} 50. Kb4 {[%emt 0:02:25]} Kc6 {[%emt 0:00:00]} 51. Kc3 {[%emt 0:00:05]} Kd7 {[%emt 0:00:32]} 52. Kb3 {[%emt 0:00:56]} Kd6 {[%emt 0:00:06]} 53. Kc3 {[%emt 0:00:04]} Kd7 {[%emt 0:00:09]} 54. Kd3 {[%emt 0:00:03]} Ke6 {[%emt 0:00:25]} 55. Kd4 {[%emt 0:00:36]} Kd6 {[%emt 0:00:05]} 56. f5 {[%emt 0:00:04]} gxf5 {[%emt 0:00:12]} 57. gxf5 {[%emt 0:00:02]} Ke7 {[%emt 0:00:12]} 58. Kxd5 {[%emt 0:00:02]} Kf6 {[%emt 0:00:07]} 59. Kd4 {[%emt 0:00:03]} Kxf5 {[%emt 0:04:32] Ke4+ Ke5+} 1/2-1/2

[Event "Moscow Youth U19 2019"]
[Site "Moscow"]
[Date "2019.11.24"]
[Round "7.5"]
[White "Shlykov, Yaroslav"]
[Black "Beliuga, Mikhail"]
[Result "0-1"]
[ECO "E04"]
[WhiteElo "1623"]
[BlackElo "1816"]
[Annotator "NA RC"]
[PlyCount "58"]
[EventDate "2019.11.18"]
[EventType "swiss"]
[EventCountry "RUS"]
[SourceTitle "playchess.com"]
[Source "ChessBase"]
[SourceQuality "1"]
[TimeControl "5400+30"]

1. d4 {[%emt 0:00:00]} Nf6 {[%emt 0:00:00]} 2. c4 {[%emt 0:00:00]} e6 {[%emt 0:00:00]} 3. g3 {[%emt 0:00:00]} d5 {[%emt 0:00:00]} 4. Bg2 {[%emt 0:00:00]} dxc4 {[%emt 0:00:45]} 5. Nf3 {[%emt 0:00:07]} Nc6 {[%emt 0:00:24]} 6. O-O {[%emt 0:01:29]} Rb8 {[%emt 0:02:23]} 7. a4 {[%emt 0:09:24]} a6 {[%emt 0:06:00]} 8. Nc3 {[%emt 0:18:15]} Be7 {[%emt 0:01:45]} 9. e4 {[%emt 0:01:52]} O-O {[%emt 0:01:47]} 10. Be3 {[%emt 0:09:12]} b5 {[%emt 0:10:58]} 11. e5 {[%emt 0:10:25]} Nd5 {[%emt 0:02:21]} 12. Nxd5 {[%emt 0:05:06]} exd5 {[%emt 0:02:08]} 13. Nd2 {[%emt 0:00:23]} f6 {[%emt 0:11:15]} 14. axb5 {[%emt 0:01:35]} axb5 {[%emt 0:05:18]} 15. f4 {[%emt 0:00:29]} fxe5 {[%emt 0:04:53]} 16. fxe5 {[%emt 0:07:04]} Rxf1+ {[%emt 0:02:30]} 17. Qxf1 {[%emt 0:00:06]} Nb4 {[%emt 0:00:07]} 18. Qf3 {[%emt 0:05:26]} Be6 {[%emt 0:12:00]} 19. Rf1 {[%emt 0:03:24]} Qd7 {[%emt 0:02:40]} 20. Qh5 {[%emt 0:01:14]} Nc2 {[%emt 0:03:34]} 21. Qe2 {[%emt 0:00:36]} Rf8 {[%emt 0:02:29]} 22. Rxf8+ {[%emt 0:00:27]} Bxf8 {[%emt 0:00:37]} 23. Nxc4 {[%emt 0:02:28]} Nxd4 {[%emt 0:00:21]} 24. Bxd4 {[%emt 0:00:05]} bxc4 {[%emt 0:01:13]} 25. Bf2 {[%emt 0:13:03]} c6 {[%emt 0:07:21]} 26. Qd2 {[%emt 0:00:54]} Qc7 {[%emt 0:01:37]} 27. Qf4 {[%emt 0:01:48]} Qb8 {[%emt 0:00:34]} 28. Qg5 {[%emt 0:02:40]} Qxb2 {[%emt 0:01:18]} 29. Qd8 {[%emt 0:00:06]} Qb1+ {[%emt 0:00:08]} 0-1

[Event "Moscow Youth U19 2019"]
[Site "Moscow"]
[Date "2019.11.24"]
[Round "7.7"]
[White "Rysaev, Danial"]
[Black "Nikolaev, Daniil"]
[Result "1-0"]
[ECO "D07"]
[WhiteElo "2029"]
[BlackElo "1867"]
[Annotator "NA"]
[PlyCount "47"]
[EventDate "2019.11.18"]
[EventType "swiss"]
[EventCountry "RUS"]
[SourceTitle "playchess.com"]
[Source "ChessBase"]
[SourceQuality "1"]
[TimeControl "5400+30"]

1. d4 {[%emt 0:04:02]} d5 {[%emt 0:00:00]} 2. c4 {[%emt 0:00:08]} Nc6 {[%emt 0:00:00]} 3. Nf3 {[%emt 0:00:17]} Bg4 {[%emt 0:00:00]} 4. Nc3 {[%emt 0:00:05]} e6 {[%emt 0:00:31]} 5. cxd5 {[%emt 0:00:10]} exd5 {[%emt 0:00:05]} 6. Qb3 {[%emt 0:00:07]} Bxf3 {[%emt 0:00:33]} 7. exf3 {[%emt 0:00:04]} Nxd4 {[%emt 0:01:01]} 8. Qa4+ {[%emt 0:00:05]} Nc6 {[%emt 0:00:15]} 9. Ba6 {[%emt 0:00:03]} Qc8 {[%emt 0:18:13]} 10. O-O {[%emt 0:01:19]} Nge7 {[%emt 0:11:59]} 11. Re1 {[%emt 0:00:10]} Kd8 {[%emt 0:03:17]} 12. Bf4 {[%emt 0:39:56]} bxa6 {[%emt 0:09:30]} 13. Nxd5 {[%emt 0:00:13]} Qb7 {[%emt 0:35:31]} 14. Nxc7 {[%emt 0:01:05]} g5 {[%emt 0:03:59]} 15. Bg3 {[%emt 0:00:19]} Kc8 {[%emt 0:12:36]} 16. Rac1 {[%emt 0:00:40]} f5 {[%emt 0:00:00]} 17. Bd6 {[%emt 0:02:01]} Kd7 {[%emt 0:00:00]} 18. Be5 {[%emt 0:00:52]} Rd8 {[%emt 0:00:00]} 19. Nxa6 {[%emt 0:01:44]} Ng6 {[%emt 0:00:03]} 20. Bf6 {[%emt 0:01:41]} Bd6 {[%emt 0:01:04]} 21. Red1 {[%emt 0:00:41]} Ke8 {[%emt 0:01:12]} 22. Bxd8 {[%emt 0:00:11]} Kxd8 {[%emt 0:00:07]} 23. Rxd6+ {[%emt 0:00:09]} Ke7 {[%emt 0:00:35]} 24. Rdxc6 {[%emt 0:00:12]} 1-0

[Event "Moscow Youth U19 2019"]
[Site "Moscow"]
[Date "2019.11.24"]
[Round "7.8"]
[White "Sekoyan, Vachagan"]
[Black "Kozhukhov, Alexandr"]
[Result "1/2-1/2"]
[ECO "A67"]
[WhiteElo "2084"]
[BlackElo "1627"]
[Annotator "NA"]
[PlyCount "87"]
[EventDate "2019.11.18"]
[EventType "swiss"]
[EventCountry "RUS"]
[SourceTitle "playchess.com"]
[Source "ChessBase"]
[SourceQuality "1"]
[TimeControl "5400+30"]

1. c4 {[%emt 0:00:00]} Nf6 {[%emt 0:01:42]} 2. Nc3 {[%emt 0:00:00]} e6 {[%emt 0:00:13]} 3. d4 {[%emt 0:00:00]} c5 {[%emt 0:00:05]} 4. d5 {[%emt 0:00:00]} exd5 {[%emt 0:00:07]} 5. cxd5 {[%emt 0:00:00]} d6 {[%emt 0:00:07]} 6. e4 {[%emt 0:00:07]} g6 {[%emt 0:00:04]} 7. f4 {[%emt 0:00:16]} Bg7 {[%emt 0:00:18]} 8. Bb5+ {[%emt 0:00:06]} Nfd7 {[%emt 0:00:15]} 9. Nf3 {[%emt 0:00:37]} O-O {[%emt 0:00:59]} 10. O-O {[%emt 0:00:05]} a6 {[%emt 0:01:10]} 11. Bd3 {[%emt 0:00:29]} b5 {[%emt 0:01:14]} 12. Kh1 {[%emt 0:04:04]} c4 {[%emt 0:01:57]} 13. Bc2 {[%emt 0:00:38]} Re8 {[%emt 0:02:30]} 14. a3 {[%emt 0:06:08]} Nc5 {[%emt 0:01:20]} 15. Be3 {[%emt 0:12:33]} Nxe4 {[%emt 0:05:53]} 16. Nxe4 {[%emt 0:18:34]} f5 {[%emt 0:11:48]} 17. Bd4 {[%emt 0:05:21]} fxe4 {[%emt 0:00:35]} 18. Ng5 {[%emt 0:03:46]} Bf5 {[%emt 0:27:16]} 19. Re1 {[%emt 0:06:48]} Bxd4 {[%emt 0:03:58]} 20. Qxd4 {[%emt 0:00:18]} Nd7 {[%emt 0:00:57]} 21. Bxe4 {[%emt 0:10:42]} Qf6 {[%emt 0:03:04]} 22. Qxf6 {[%emt 0:06:10]} Nxf6 {[%emt 0:00:21]} 23. Bf3 {[%emt 0:00:16]} h6 {[%emt 0:05:44]} 24. Ne6 {[%emt 0:00:17]} Ra7 {[%emt 0:00:53]} 25. Nd4 {[%emt 0:17:46]} Rae7 {[%emt 0:02:29]} 26. Rxe7 {[%emt 0:00:28]} Rxe7 {[%emt 0:00:04]} 27. Kg1 {[%emt 0:02:32]} Re3 {[%emt 0:28:27]} 28. Rd1 {[%emt 0:02:00]} Be4 {[%emt 0:00:00]} 29. Kf2 {[%emt 0:01:15]} Bxf3 {[%emt 0:00:00]} 30. gxf3 {[%emt 0:00:32]} Nxd5 {[%emt 0:00:00]} 31. Nxb5 {[%emt 0:02:45]} axb5 {[%emt 0:00:00]} 32. Rxd5 {[%emt 0:00:01]} Rb3 {[%emt 0:00:00]} 33. Rxd6 {[%emt 0:00:52]} Rxb2+ {[%emt 0:00:00]} 34. Ke3 {[%emt 0:00:50]} Rxh2 {[%emt 0:00:00]} 35. Rxg6+ {[%emt 0:00:09]} Kf7 {[%emt 0:00:00]} 36. Rb6 {[%emt 0:00:18]} Rb2 {[%emt 0:00:00]} 37. Rxh6 {[%emt 0:00:53]} Rb3+ {[%emt 0:00:00]} 38. Ke4 {[%emt 0:00:27]} Rxa3 {[%emt 0:00:00]} 39. Rb6 {[%emt 0:00:33]} Rb3 {[%emt 0:00:00]} 40. f5 {[%emt 0:00:21]} c3 {[%emt 0:00:00]} 41. Kd3 {[%emt 0:00:54]} b4 {[%emt 0:00:00]} 42. Kc2 {[%emt 0:00:34]} Rb2+ {[%emt 0:00:00]} 43. Kc1 {[%emt 0:00:05]} b3 {[%emt 0:08:00]} 44. f6 {[%emt 0:01:30]} 1/2-1/2

[Event "Moscow Youth U19 2019"]
[Site "Moscow"]
[Date "2019.11.24"]
[Round "7.9"]
[White "Budnichenko, Vladimir"]
[Black "Zavialov, Nikita A."]
[Result "0-1"]
[ECO "B31"]
[WhiteElo "1489"]
[BlackElo "2066"]
[Annotator "NA"]
[PlyCount "74"]
[EventDate "2019.11.18"]
[EventType "swiss"]
[EventCountry "RUS"]
[SourceTitle "playchess.com"]
[Source "ChessBase"]
[SourceQuality "1"]
[TimeControl "5400+30"]

1. e4 {[%emt 0:00:00]} c5 {[%emt 0:00:00]} 2. Nf3 {[%emt 0:00:00]} Nc6 {[%emt 0:00:00]} 3. Bb5 {[%emt 0:00:00]} g6 {[%emt 0:00:00]} 4. Bxc6 {[%emt 0:00:00]} bxc6 {[%emt 0:00:00]} 5. O-O {[%emt 0:00:00]} Bg7 {[%emt 0:05:29]} 6. Re1 {[%emt 0:00:00]} e5 {[%emt 0:02:16]} 7. c3 {[%emt 0:00:00]} Qb6 {[%emt 0:06:04]} 8. Na3 {[%emt 0:07:58]} Ba6 {[%emt 0:00:56]} 9. d3 {[%emt 0:01:09]} Ne7 {[%emt 0:01:40]} 10. Nc4 {[%emt 0:05:30]} Bxc4 {[%emt 0:00:53]} 11. dxc4 {[%emt 0:00:03]} Rd8 {[%emt 0:02:45]} 12. Qc2 {[%emt 0:07:54]} O-O {[%emt 0:01:20]} 13. Bg5 {[%emt 0:03:10]} f6 {[%emt 0:01:01]} 14. Be3 {[%emt 0:00:12]} d5 {[%emt 0:02:12]} 15. cxd5 {[%emt 0:01:14]} cxd5 {[%emt 0:00:05]} 16. exd5 {[%emt 0:02:10]} Nxd5 {[%emt 0:01:22]} 17. b4 {[%emt 0:07:24]} Nxe3 {[%emt 0:01:40]} 18. Rxe3 {[%emt 0:00:03]} c4 {[%emt 0:05:16]} 19. Qe2 {[%emt 0:09:00]} Qa6 {[%emt 0:09:34]} 20. Nd2 {[%emt 0:54:13]} Bh6 {[%emt 0:02:05]} 21. Qxc4+ {[%emt 0:00:00]} Qxc4 {[%emt 0:00:07]} 22. Nxc4 {[%emt 0:00:00]} Bxe3 {[%emt 0:00:45]} 23. Nxe3 {[%emt 0:00:00]} Rd2 {[%emt 0:01:10]} 24. a4 {[%emt 0:00:00]} Rfd8 {[%emt 0:09:03]} 25. Kf1 {[%emt 0:00:00]} Kf7 {[%emt 0:01:51]} 26. c4 {[%emt 0:00:00]} f5 {[%emt 0:11:00]} 27. c5 {[%emt 0:00:00]} Ke6 {[%emt 0:02:06]} 28. b5 {[%emt 0:00:00]} f4 {[%emt 0:01:08]} 29. Nc4 {[%emt 0:00:00]} Rd1+ {[%emt 0:00:10]} 30. Rxd1 {[%emt 0:00:00]} Rxd1+ {[%emt 0:00:04]} 31. Ke2 {[%emt 0:00:00]} Rd4 {[%emt 0:00:36]} 32. Nb2 {[%emt 0:00:00]} Rb4 {[%emt 0:00:41]} 33. Nd3 {[%emt 0:00:00]} Rxa4 {[%emt 0:00:24]} 34. b6 {[%emt 0:00:00]} Ra2+ {[%emt 0:01:53]} 35. Kf3 {[%emt 0:00:00]} Ra3 {[%emt 0:01:06]} 36. Ke4 {[%emt 0:00:00]} Ra4+ {[%emt 0:01:18]} 37. Kf3 {[%emt 0:00:00]} e4+ {[%emt 0:00:26]} 0-1

[Event "Moscow Youth U19 2019"]
[Site "Moscow"]
[Date "2019.11.24"]
[Round "7.10"]
[White "Talyzin, Valeriy"]
[Black "Agashin, Alexandr"]
[Result "1-0"]
[ECO "A08"]
[WhiteElo "1829"]
[BlackElo "1546"]
[Annotator "NA RC"]
[PlyCount "59"]
[EventDate "2019.11.18"]
[EventType "swiss"]
[EventCountry "RUS"]
[SourceTitle "playchess.com"]
[Source "ChessBase"]
[SourceQuality "1"]
[TimeControl "5400+30"]

1. Nf3 {[%emt 0:00:00]} Nf6 {[%emt 0:00:00]} 2. g3 {[%emt 0:00:00]} g6 {[%emt 0:00:00]} 3. Bg2 {[%emt 0:00:00]} Bg7 {[%emt 0:00:00]} 4. O-O {[%emt 0:00:00]} O-O {[%emt 0:00:38]} 5. d3 {[%emt 0:00:00]} d5 {[%emt 0:00:27]} 6. Nc3 {[%emt 0:00:00]} c5 {[%emt 0:02:39]} 7. e4 {[%emt 0:00:00]} dxe4 {[%emt 0:02:26]} 8. Nxe4 {[%emt 0:00:06]} Nxe4 {[%emt 0:00:09]} 9. dxe4 {[%emt 0:00:04]} Nc6 {[%emt 0:00:59]} 10. c3 {[%emt 0:00:02]} e5 {[%emt 0:08:14]} 11. Bg5 {[%emt 0:01:01]} Qb6 {[%emt 0:01:12]} 12. Qc2 {[%emt 0:00:40]} Be6 {[%emt 0:02:46]} 13. Be3 {[%emt 0:00:35]} Qa5 {[%emt 0:03:34]} 14. Ng5 {[%emt 0:04:39]} Bc4 {[%emt 0:05:16]} 15. b4 {[%emt 0:01:09]} cxb4 {[%emt 0:02:41]} 16. cxb4 {[%emt 0:00:21]} Qa6 {[%emt 0:02:55]} 17. Bc5 {[%emt 0:05:53]} Rfd8 {[%emt 0:07:49]} 18. Rfc1 {[%emt 0:01:03]} Bd3 {[%emt 0:03:57]} 19. Qb3 {[%emt 0:00:14]} Rd7 {[%emt 0:04:11]} 20. Bh3 {[%emt 1:24:13]} Rc7 {[%emt 0:50:07]} 21. a4 {[%emt 0:04:01]} Nd8 {[%emt 0:10:49]} 22. b5 {[%emt 0:02:06]} Qf6 {[%emt 0:00:56]} 23. Be3 {[%emt 0:01:59]} Rxc1+ {[%emt 0:03:15]} 24. Rxc1 {[%emt 0:00:04]} Be2 {[%emt 0:02:35]} 25. Rc7 {[%emt 0:00:15]} h6 {[%emt 0:01:18]} 26. Nxf7 {[%emt 0:02:06]} Nxf7 {[%emt 0:00:10]} 27. Rxf7 {[%emt 0:00:08]} Bd1 {[%emt 0:02:08]} 28. Qd5 {[%emt 0:03:51]} Rd8 {[%emt 0:02:21]} 29. Rd7+ {[%emt 0:00:22]} Kh7 {[%emt 0:00:07]} 30. Rxd8 {[%emt 0:00:06]} 1-0

[Event "Moscow Youth U19 2019"]
[Site "Moscow"]
[Date "2019.11.25"]
[Round "8.4"]
[White "Beliuga, Mikhail"]
[Black "Rysaev, Danial"]
[Result "0-1"]
[ECO "A49"]
[WhiteElo "1816"]
[BlackElo "2029"]
[Annotator "NA RC"]
[PlyCount "92"]
[EventDate "2019.11.18"]
[EventType "swiss"]
[EventCountry "RUS"]
[SourceTitle "playchess.com"]
[Source "ChessBase"]
[SourceQuality "1"]
[TimeControl "5400+30"]

1. d4 {[%emt 0:00:00]} Nf6 {[%emt 0:08:13]} 2. g3 {[%emt 0:00:00]} c5 {[%emt 0:00:53]} 3. Nf3 {[%emt 0:00:26]} g6 {[%emt 0:00:09]} 4. Bg2 {[%emt 0:00:23]} Bg7 {[%emt 0:00:14]} 5. O-O {[%emt 0:02:54]} O-O {[%emt 0:00:10]} 6. Nc3 {[%emt 0:05:00]} cxd4 {[%emt 0:04:28]} 7. Nxd4 {[%emt 0:00:05]} d5 {[%emt 0:00:48]} 8. Nb3 {[%emt 0:00:49]} e6 {[%emt 0:01:43]} 9. e4 {[%emt 0:21:20] A49: 1 d4 Nf6 2 Nf3 g6 3 g3: Anti-King's Indian systems} dxe4 {[%emt 0:00:14]} (9... Nc6 10. exd5 exd5 11. Bg5 h6 12. Be3 Re8 13. Qd2 Ng4 14. Bc5 Be6 15. Nxd5 Bxb2 16. Rad1 Bxd5 17. Bxd5 {1-0 (59) Ding,L (2812)-Adams,M (2708) Astana 2019}) 10. Qxd8 {[%emt 0:00:06]} Rxd8 {[%emt 0:00:04]} 11. Bg5 {[%emt 0:00:41]} Nbd7 $146 {[%emt 0:11:53]} ({Predecessor:} 11... h6 12. Bxf6 Bxf6 13. Nxe4 Bxb2 14. Rad1 Rxd1 15. Rxd1 Nc6 16. Nd6 Ba3 {1-0 (48) Vijayalakshmi,S (2417)-Nikolaidis,I (2538) Kalamaria 2006}) 12. Nxe4 {[%emt 0:02:07]} h6 {[%emt 0:00:11]} 13. Bxf6 {[%emt 0:11:28]} Nxf6 {[%emt 0:00:07]} 14. Rad1 {[%emt 0:00:05]} Rxd1 {[%emt 0:04:27]} 15. Rxd1 {[%emt 0:00:01]} Nxe4 {[%emt 0:01:47]} 16. Rd8+ {[%emt 0:03:15]} Bf8 {[%emt 0:00:06]} 17. Bxe4 {[%emt 0:00:07]} f5 {[%emt 0:00:04]} 18. Bg2 {[%emt 0:00:34]} Kf7 {[%emt 0:00:37]} 19. Na5 {[%emt 0:08:54]} Be7 {[%emt 0:05:20]} 20. Rd3 {[%emt 0:00:06]} Rb8 {[%emt 0:02:19]} 21. Rb3 {[%emt 0:01:33]} b5 {[%emt 0:00:31]} 22. Nc6 {[%emt 0:11:58]} Rb6 {[%emt 0:00:05]} 23. Nxa7 {[%emt 0:00:46]} Bd7 {[%emt 0:01:18]} 24. Rc3 {[%emt 0:01:25]} Rd6 {[%emt 0:22:45]} 25. Kf1 {[%emt 0:19:02]} Bd8 {[%emt 0:02:00]} 26. Ke2 {[%emt 0:06:44]} e5 {[%emt 0:01:59]} 27. Bc6 {[%emt 0:01:49]} Ba5 {[%emt 0:01:10]} 28. Rd3 {[%emt 0:00:02]} Rxd3 {[%emt 0:01:59]} 29. Kxd3 {[%emt 0:00:02]} e4+ {[%emt 0:00:15]} 30. Ke2 {[%emt 0:00:13]} Bxc6 {[%emt 0:00:42]} 31. Nxc6 {[%emt 0:00:02]} Bb6 {[%emt 0:00:15]} 32. c3 {[%emt 0:01:12]} Kf6 {[%emt 0:01:21]} 33. f3 {[%emt 0:02:39]} g5 {[%emt 0:02:03]} 34. Nb4 {[%emt 0:00:03]} Ke5 {[%emt 0:00:22]} 35. Nc2 {[%emt 0:01:01]} Bg1 {[%emt 0:00:59]} 36. h3 {[%emt 0:00:14]} h5 {[%emt 0:01:19]} 37. Ne3 {[%emt 0:00:52]} exf3+ {[%emt 0:00:19]} 38. Kxf3 {[%emt 0:00:02]} g4+ {[%emt 0:00:02]} 39. hxg4 {[%emt 0:00:27]} hxg4+ {[%emt 0:00:25]} 40. Ke2 {[%emt 0:00:00]} Ke4 {[%emt 0:00:19]} 41. Nf1 {[%emt 0:00:02]} f4 {[%emt 0:00:52]} 42. gxf4 {[%emt 0:00:56]} Kxf4 {[%emt 0:00:09]} 43. Nd2 {[%emt 0:01:22]} Bb6 $11 {[%emt 0:02:53]} 44. b3 {[%emt 0:00:36]} g3 {[%emt 0:01:57]} 45. Nf3 {[%emt 0:00:22]} g2 {[%emt 0:00:16]} 46. c4 {[%emt 0:00:18]} b4 {[%emt 0:00:20]} 0-1

[Event "Moscow Youth U19 2019"]
[Site "Moscow"]
[Date "2019.11.25"]
[Round "8.6"]
[White "Buniatyan, David"]
[Black "Shlykov, Yaroslav"]
[Result "1-0"]
[ECO "E04"]
[WhiteElo "1960"]
[BlackElo "1623"]
[Annotator "NA RC"]
[PlyCount "139"]
[EventDate "2019.11.18"]
[EventType "swiss"]
[EventCountry "RUS"]
[SourceTitle "playchess.com"]
[Source "ChessBase"]
[SourceQuality "1"]
[TimeControl "5400+30"]

1. d4 {[%emt 0:00:00]} e6 {[%emt 0:00:00]} 2. Nf3 {[%emt 0:00:00]} Nf6 {[%emt 0:00:00]} 3. c4 {[%emt 0:00:00]} d5 {[%emt 0:00:06]} 4. g3 {[%emt 0:00:00]} dxc4 {[%emt 0:00:38]} 5. Bg2 {[%emt 0:00:00]} Bd7 {[%emt 0:00:14]} 6. Ne5 {[%emt 0:00:06]} Bc6 {[%emt 0:00:05]} 7. Nxc6 {[%emt 0:00:06]} Nxc6 {[%emt 0:00:04]} 8. O-O {[%emt 0:00:02]} Qd7 {[%emt 0:05:47]} 9. e3 {[%emt 0:00:17]} O-O-O {[%emt 0:01:05]} 10. Qa4 {[%emt 0:00:18]} Nd5 {[%emt 0:01:56]} 11. Qxc4 {[%emt 0:00:33]} h5 {[%emt 0:00:05]} 12. Bd2 {[%emt 0:00:17]} h4 {[%emt 0:01:52]} 13. Rc1 {[%emt 0:00:28]} hxg3 {[%emt 0:01:45]} 14. hxg3 {[%emt 0:00:00]} f5 {[%emt 0:02:18]} 15. b4 {[%emt 0:00:12]} Kb8 {[%emt 0:05:13]} 16. b5 {[%emt 0:01:59]} Nce7 {[%emt 0:00:07]} 17. a4 {[%emt 0:05:47]} Nf6 {[%emt 0:04:55]} 18. Nc3 {[%emt 0:15:01]} Ned5 {[%emt 0:00:57]} 19. a5 {[%emt 0:02:19]} Rc8 {[%emt 0:06:50]} 20. a6 {[%emt 0:23:26]} b6 {[%emt 0:01:30]} 21. e4 {[%emt 0:01:42]} Nxc3 {[%emt 0:14:52]} 22. Qxc3 {[%emt 0:14:40]} Nxe4 {[%emt 0:07:09]} 23. Qd3 {[%emt 0:04:36]} Qd5 {[%emt 0:04:51]} 24. Re1 {[%emt 0:02:09]} Bc5 {[%emt 0:07:22]} 25. Bc3 {[%emt 0:07:23]} Rcf8 {[%emt 0:10:20]} 26. Bxe4 {[%emt 0:02:33]} fxe4 {[%emt 0:00:04]} 27. Qxe4 {[%emt 0:00:13]} Bd6 {[%emt 0:00:16]} 28. Re3 {[%emt 0:03:14]} Kc8 {[%emt 0:05:48]} 29. Qxe6+ {[%emt 0:00:42]} Qxe6 {[%emt 0:00:02]} 30. Rxe6 {[%emt 0:00:01]} Rf5 {[%emt 0:00:22]} 31. Rb1 {[%emt 0:03:06]} Rfh5 {[%emt 0:00:22]} 32. Rb2 {[%emt 0:02:41]} Rd5 {[%emt 0:07:36]} 33. Rg6 {[%emt 0:01:20]} Rh7 {[%emt 0:00:28]} 34. Kg2 {[%emt 0:00:34]} Kd7 {[%emt 0:00:13]} 35. Kf3 {[%emt 0:01:16]} Ke7 {[%emt 0:07:18]} 36. Ke4 {[%emt 0:03:39]} Rdh5 {[%emt 0:00:47]} 37. Kd3 {[%emt 0:00:45]} Kf7 {[%emt 0:00:29]} 38. Rg4 {[%emt 0:00:07]} Rf5 {[%emt 0:00:26]} 39. Re4 {[%emt 0:01:44]} Rh1 {[%emt 0:00:44]} 40. Re1 {[%emt 0:01:27]} Rh2 {[%emt 0:00:34] [#]} 41. Ree2 $1 {[%emt 0:00:52]} Rf3+ {[%emt 0:01:24]} 42. Kc4 {[%emt 0:00:09]} Rh1 {[%emt 0:02:52]} 43. Bb4 {[%emt 0:01:12]} Rc1+ {[%emt 0:01:03]} (43... Rf5 $16 44. Re1 Rxe1 45. Bxe1 Ke6 46. Re2+ Kd7) 44. Rec2 {[%emt 0:00:07]} Rxc2+ {[%emt 0:00:17]} 45. Rxc2 {[%emt 0:00:01]} Ke6 {[%emt 0:00:07]} 46. Re2+ {[%emt 0:00:56]} Kd7 {[%emt 0:00:05]} 47. Bxd6 {[%emt 0:00:41]} Kxd6 {[%emt 0:01:13] [#]} 48. Re8 $1 {[%emt 0:01:23]} Rxf2 {[%emt 0:00:05] [#]} 49. Rd8+ $1 {[%emt 0:00:30]} Ke6 {[%emt 0:00:30]} 50. Ra8 {[%emt 0:00:27]} Rc2+ {[%emt 0:00:06]} 51. Kb3 {[%emt 0:00:22]} Rg2 {[%emt 0:01:32]} 52. Rxa7 {[%emt 0:00:22]} Rxg3+ {[%emt 0:00:03]} 53. Kb4 {[%emt 0:01:38]} Kd7 {[%emt 0:00:08]} 54. Ra8 {[%emt 0:00:28]} Rg1 {[%emt 0:01:05]} 55. Rg8 {[%emt 0:00:12]} Ra1 {[%emt 0:00:36]} 56. Rxg7+ {[%emt 0:00:05]} Kd6 {[%emt 0:00:38]} 57. Rg3 {[%emt 0:01:07]} c5+ {[%emt 0:00:25]} 58. dxc5+ {[%emt 0:02:25]} bxc5+ {[%emt 0:00:04]} 59. Kb3 {[%emt 0:00:19]} Ra5 {[%emt 0:00:52]} 60. Rg6+ {[%emt 0:00:21]} Kd5 {[%emt 0:00:05]} 61. Rb6 {[%emt 0:00:37]} Ra1 $18 {[%emt 0:00:55]} 62. Rb7 {[%emt 0:00:22]} c4+ {[%emt 0:00:26]} 63. Kb2 {[%emt 0:00:50]} Ra5 {[%emt 0:00:18]} 64. a7 {[%emt 0:00:18]} Kc5 {[%emt 0:00:08]} 65. b6 {[%emt 0:00:19]} Kb4 {[%emt 0:00:05]} 66. Rc7 {[%emt 0:01:17]} Ka4 {[%emt 0:01:32]} 67. Rxc4+ {[%emt 0:00:33]} Kb5 {[%emt 0:00:05]} 68. Rc8 {[%emt 0:00:07]} Kxb6 {[%emt 0:00:34]} 69. a8=Q {[%emt 0:00:09]} Rb5+ {[%emt 0:00:03]} 70. Kc2 {[%emt 0:00:19]} 1-0